bitfinex/quotes_BTCUSD_20240718
["timestamp","ask_amount","ask_price","bid_price","bid_amount"]
[1721311853848,1.90407548,64665.0,64664.0,0.009185]
[1721311854074,1.88207548,64665.0,64664.0,0.009185]
[1721311854334,1.59578948,64665.0,64664.0,0.009185]
[1721311854576,1.39608948,64665.0,64664.0,0.074885]
[1721311854794,1.42408948,64665.0,64664.0,0.074885]
[1721311856191,1.44708948,64665.0,64664.0,0.074885]
[1721311856927,2.41907548,64665.0,64664.0,0.074885]
[1721311857151,2.46907548,64665.0,64664.0,0.009185]
[1721311857843,2.41907548,64665.0,64664.0,0.009185]
[1721311858523,2.46907548,64665.0,64664.0,0.009185]
[1721311859200,2.90272685,64665.0,64664.0,0.009185]
[1721311859723,2.56764639,64665.0,64664.0,0.009185]
[1721311859944,2.61764639,64665.0,64664.0,0.009185]
[1721311860166,2.60364639,64665.0,64664.0,0.009185]
[1721311860391,2.85722148,64665.0,64664.0,0.009185]
[1721311860615,2.92738914,64665.0,64664.0,0.009185]
[1721311861062,2.91338914,64665.0,64664.0,0.009185]
[1721311861307,2.92738914,64665.0,64664.0,0.009185]
[1721311861781,2.89542607,64665.0,64664.0,0.009185]
[1721311862056,2.61779274,64665.0,64664.0,0.009185]
[1721311862283,2.47493274,64665.0,64664.0,0.009185]
[1721311862524,2.52493145,64665.0,64664.0,0.009185]
[1721311862751,2.49693145,64665.0,64664.0,0.009185]
[1721311862993,2.48293145,64665.0,64664.0,0.009185]
[1721311863231,2.51093145,64665.0,64664.0,0.009185]
[1721311863455,2.60379145,64665.0,64664.0,0.009185]
[1721311863682,2.92707745,64665.0,64664.0,0.009185]
[1721311864383,2.61779145,64665.0,64664.0,0.009185]
[1721311864628,2.56779145,64665.0,64664.0,0.009185]
[1721311865084,2.92731737,64665.0,64664.0,0.009185]
[1721311866780,2.56803137,64665.0,64664.0,0.009185]
[1721311866999,1.78947137,64665.0,64664.0,0.154385]
[1721311868860,1.81247137,64665.0,64664.0,0.154385]
[1721311869344,1.86247137,64665.0,64664.0,0.154385]
[1721311869562,2.42731737,64665.0,64664.0,0.009185]
[1721311869844,2.49445817,64665.0,64664.0,0.009185]
[1721311870069,2.99445817,64665.0,64664.0,0.009185]
[1721311870533,2.96645817,64665.0,64664.0,0.009185]
[1721311870765,2.90245817,64665.0,64664.0,0.009185]
[1721311870996,2.93045817,64665.0,64664.0,0.009185]
[1721311871234,2.83142607,64665.0,64664.0,0.009185]
[1721311871472,2.93039671,64665.0,64664.0,0.009185]
[1721311871708,2.88142607,64665.0,64664.0,0.009185]
[1721311871943,2.97970942,64665.0,64664.0,0.009185]
[1721311872176,2.98240312,64665.0,64664.0,0.009185]
[1721311872396,3.02808178,64665.0,64664.0,0.009185]
[1721311872633,3.33736778,64665.0,64664.0,1e-06]
[1721311872856,3.02808178,64665.0,64664.0,1e-06]
[1721311873301,2.93240312,64665.0,64664.0,1e-06]
[1721311873563,3.00092111,64665.0,64664.0,1e-06]
[1721311873800,2.50092111,64665.0,64664.0,1e-06]
[1721311874032,2.50092111,64665.0,64664.0,0.077501]
[1721311874033,2.50765712,64665.0,64664.0,0.077501]
[1721311874272,2.05067312,64665.0,64664.0,0.077501]
[1721311874500,2.05101944,64665.0,64664.0,0.077501]
[1721311875207,2.55101944,64665.0,64664.0,0.077501]
[1721311875427,2.50531143,64665.0,64664.0,0.077501]
[1721311875653,2.71673588,64665.0,64664.0,0.077501]
[1721311875878,2.71673588,64665.0,64664.0,1e-06]
[1721311876105,3.04902981,64665.0,64664.0,1e-06]
[1721311876540,3.0718767,64665.0,64664.0,1e-06]
[1721311877450,2.88182607,64665.0,64664.0,1e-06]
[1721311877674,3.09631856,64665.0,64664.0,1e-06]
[1721311878569,2.9819647,64665.0,64664.0,1e-06]
[1721311879679,2.1226787,64665.0,64664.0,1e-06]
[1721311879929,1.8667187,64665.0,64664.0,1e-06]
[1721311880139,1.13024976,64665.0,64664.0,0.136001]
[1721311880388,1.13024976,64665.0,64664.0,0.1496011]
[1721311880389,0.25205433,64665.0,64664.0,0.1496011]
[1721311880604,0.87062633,64665.0,64664.0,0.136001]
[1721311880828,0.00084,64666.0,64665.0,0.1464]
[1721311881070,0.00084,64666.0,64665.0,0.1610401]
[1721311881308,0.464761,64666.0,64665.0,0.16964717]
[1721311881529,0.464761,64666.0,64665.0,0.15500707]
[1721311881530,0.64334065,64666.0,64665.0,0.15500707]
[1721311881757,1.36171156,64666.0,64665.0,0.15500707]
[1721311881976,1.52481156,64666.0,64665.0,0.1464]
[1721311882215,1.52481156,64666.0,64664.0,1e-06]
[1721311882216,0.773215,64665.0,64664.0,1e-06]
[1721311882431,1.325959,64665.0,64664.0,1e-06]
[1721311882659,1.84212452,64665.0,64664.0,1e-06]
[1721311882919,2.48369652,64665.0,64664.0,1e-06]
[1721311883556,2.04744435,64665.0,64664.0,1e-06]
[1721311883773,1.98053766,64665.0,64664.0,1e-06]
[1721311883997,1.72457766,64665.0,64664.0,1e-06]
[1721311884225,1.87517542,64665.0,64664.0,0.065601]
[1721311884449,2.11059029,64665.0,64664.0,0.001001]
[1721311884673,2.11059029,64665.0,64664.0,1e-06]
[1721311884674,2.20237312,64665.0,64664.0,1e-06]
[1721311885336,2.04759029,64665.0,64664.0,1e-06]
[1721311885581,2.17755908,64665.0,64664.0,1e-06]
[1721311885802,2.18876508,64665.0,64664.0,0.001001]
[1721311886061,2.44805108,64665.0,64664.0,0.001001]
[1721311886294,1.082784,64648.0,64647.0,0.1467]
[1721311886519,1.33716574,64648.0,64647.0,0.1467]
[1721311886761,1.39271471,64648.0,64647.0,0.1467]
[1721311886990,1.41571471,64648.0,64647.0,0.1467]
[1721311887470,1.39271471,64648.0,64647.0,0.1467]
[1721311888172,1.41771471,64648.0,64647.0,0.1467]
[1721311889800,1.41834667,64648.0,64647.0,0.1467]
[1721311890253,1.41803186,64648.0,64647.0,0.1467]
[1721311890479,1.42803185,64648.0,64647.0,0.1477]
[1721311890734,1.44003185,64648.0,64647.0,0.1487]
[1721311891443,1.44003185,64648.0,64647.0,0.1477]
[1721311891444,1.42803185,64648.0,64647.0,0.1477]
[1721311892162,1.39636365,64648.0,64647.0,0.1477]
[1721311892835,1.37336365,64648.0,64647.0,0.1477]
[1721311893062,1.39636365,64648.0,64647.0,0.1477]
[1721311893314,1.40836365,64648.0,64647.0,0.1487]
[1721311893545,1.71773065,64648.0,64647.0,0.1487]
[1721311894205,1.74903006,64648.0,64647.0,0.1487]
[1721311894859,1.71773065,64648.0,64647.0,0.1487]
[1721311895298,0.92161491,64648.0,64647.0,0.1487]
[1721311895771,1.23098191,64648.0,64647.0,0.1487]
[1721311897338,0.92161491,64648.0,64647.0,0.1487]
[1721311899698,1.23098191,64648.0,64647.0,0.1487]
[1721311899898,1.40836365,64648.0,64647.0,0.1487]
[1721311901050,0.92161491,64648.0,64647.0,0.1487]
[1721311902184,0.04819791,64648.0,64647.0,0.16357]
[1721311902430,0.024,64648.0,64647.0,0.16357]
[1721311902642,0.024,64648.0,64647.0,0.15798966]
[1721311903393,0.012,64648.0,64647.0,0.15698966]
[1721311903615,0.154681,64649.0,64647.0,0.15698966]
[1721311903616,0.154681,64649.0,64648.0,0.0763]
[1721311903853,0.154681,64649.0,64648.0,0.1408]
[1721311904058,0.254679,64650.0,64648.0,0.15008701]
[1721311904260,0.254679,64650.0,64649.0,0.0645]
[1721311904514,0.32350714,64650.0,64649.0,0.0645]
[1721311904690,0.564037,64650.0,64649.0,0.07378436]
[1721311904895,0.32350714,64650.0,64649.0,0.07378436]
[1721311905097,0.254679,64650.0,64649.0,0.07378436]
[1721311905460,0.30055951,64650.0,64649.0,0.07378436]
[1721311905702,0.94222314,64650.0,64649.0,0.07378436]
[1721311905948,0.94221381,64650.0,64649.0,0.07378436]
[1721311906231,0.94221381,64650.0,64649.0,0.0645]
[1721311906232,0.98936996,64650.0,64649.0,0.0645]
[1721311906500,0.58824111,64650.0,64649.0,0.0645]
[1721311906980,0.564037,64650.0,64649.0,0.0645]
[1721311908097,0.565037,64650.0,64649.0,0.0645]
[1721311908339,0.101,64650.0,64649.0,0.0645]
[1721311908563,0.04687969,64650.0,64649.0,0.33023]
[1721311908798,0.001,64650.0,64649.0,0.639592]
[1721311909029,0.001,64650.0,64649.0,1.26759385]
[1721311909262,0.09177178,64664.0,64660.0,0.463965]
[1721311909487,0.35515131,64670.0,64661.0,0.144]
[1721311909715,0.35515131,64670.0,64662.0,0.144]
[1721311909716,0.154639,64667.0,64662.0,0.144]
[1721311909937,0.154639,64667.0,64663.0,0.144]
[1721311910193,0.154639,64667.0,64664.0,0.0626]
[1721311910403,0.04588631,64669.0,64665.0,0.08379893]
[1721311910404,0.15548,64666.0,64665.0,0.08379893]
[1721311910632,0.15548,64666.0,64665.0,0.09302232]
[1721311911130,0.464761,64666.0,64665.0,0.00922339]
[1721311912252,0.464761,64666.0,64665.0,0.01222339]
[1721311912710,0.15548,64666.0,64665.0,0.01222339]
[1721311912931,0.15548,64666.0,64665.0,0.003]
[1721311913154,0.15548,64666.0,64665.0,0.006]
[1721311913299,0.15548,64666.0,64665.0,0.003]
[1721311913517,0.15548,64666.0,64665.0,0.04929631]
[1721311914341,0.00084,64666.0,64665.0,0.01221631]
[1721311914572,0.00084,64666.0,64665.0,0.00921631]
[1721311914841,0.00084,64666.0,64665.0,0.15371631]
[1721311915014,0.00084,64666.0,64665.0,1.08131305]
[1721311915215,0.00084,64666.0,64665.0,1.21183363]
[1721311915406,0.00084,64666.0,64665.0,1.52111963]
[1721311916193,0.00184,64666.0,64665.0,1.52111963]
[1721311916415,0.00284,64666.0,64665.0,0.29523689]
[1721311916783,0.15748,64666.0,64665.0,0.16471631]
[1721311916932,0.466761,64666.0,64665.0,0.16471631]
[1721311917137,0.467761,64666.0,64665.0,0.17471631]
[1721311918196,0.777042,64666.0,64665.0,0.17471631]
[1721311918413,1.086323,64666.0,64665.0,0.1655]
[1721311919282,1.083323,64666.0,64665.0,0.1445]
[1721311919501,1.087323,64666.0,64665.0,0.1445]
[1721311920338,0.778042,64666.0,64665.0,0.15895]
[1721311920755,0.782042,64666.0,64665.0,0.15895]
[1721311920981,0.00884,64666.0,64665.0,0.15895]
[1721311921402,0.00884,64666.0,64665.0,0.1668746]
[1721311921613,0.16348,64666.0,64665.0,0.1524246]
[1721311921844,0.472761,64666.0,64665.0,0.1524246]
[1721311922063,0.782042,64666.0,64665.0,0.1445]
[1721311922280,0.16348,64666.0,64665.0,0.1445]
[1721311922518,0.16348,64666.0,64665.0,0.15895]
[1721311922731,0.472761,64666.0,64665.0,0.1524246]
[1721311922931,0.472761,64666.0,64665.0,0.1445]
[1721311923146,0.464761,64666.0,64665.0,0.1445]
[1721311923589,1.083323,64666.0,64665.0,0.1455]
[1721311923818,1.083323,64666.0,64665.0,0.001]
[1721311924043,0.774042,64666.0,64665.0,0.001]
[1721311924265,0.00084,64666.0,64665.0,0.15184]
[1721311924487,0.15548,64666.0,64665.0,0.1371]
[1721311924703,0.15548,64666.0,64665.0,0.14402501]
[1721311924704,0.464761,64666.0,64665.0,0.14402501]
[1721311925123,0.467761,64666.0,64665.0,0.14402501]
[1721311925354,0.777042,64666.0,64665.0,0.1361]
[1721311925568,0.309328,64657.0,64650.0,0.154678]
[1721311925792,0.309318,64659.0,64650.0,0.154678]
[1721311925793,0.309318,64659.0,64651.0,0.0185251]
[1721311926020,0.15465,64662.0,64656.0,0.154662]
[1721311926244,0.00384,64666.0,64660.0,0.309308]
[1721311926463,0.46395,64662.0,64661.0,0.09183137]
[1721311926680,0.463965,64660.0,64659.0,0.0833]
[1721311927328,0.154655,64660.0,64659.0,0.0833]
[1721311927522,0.773275,64660.0,64659.0,0.0833]
[1721311927733,0.154669,64654.0,64653.0,0.062]
[1721311927941,0.773345,64654.0,64653.0,0.062]
[1721311930497,0.774345,64654.0,64653.0,0.062]
[1721311930713,0.001,64654.0,64653.0,0.0766224]
[1721311931220,0.005,64654.0,64653.0,1.1482794]
[1721311931450,0.005,64654.0,64653.0,1.15568227]
[1721311931915,0.009,64654.0,64653.0,1.61940701]
[1721311932136,0.009,64654.0,64653.0,1.66940701]
[1721311932358,0.008,64654.0,64653.0,1.61940701]
[1721311932577,0.008,64654.0,64653.0,1.31006401]
[1721311932795,0.009,64654.0,64653.0,1.31006401]
[1721311933249,0.00084,64666.0,64662.0,0.154649]
[1721311933472,0.312081,64665.0,64663.0,0.1850956]
[1721311933694,0.154645,64664.0,64663.0,0.14607616]
[1721311933915,0.154643,64665.0,64663.0,0.1387]
[1721311934136,0.155482,64666.0,64663.0,0.14607616]
[1721311934349,0.155482,64666.0,64663.0,0.20708048]
[1721311934569,0.00084,64666.0,64663.0,0.20708048]
[1721311934781,0.155481,64666.0,64663.0,0.20708048]
[1721311935011,0.00084,64666.0,64663.0,0.20708048]
[1721311935443,0.154643,64665.0,64663.0,0.20708048]
[1721311935658,1.082518,64664.0,64663.0,0.00937616]
[1721311935884,1.23689974,64664.0,64663.0,0.00937616]
[1721311936103,1.74839488,64664.0,64663.0,0.002]
[1721311936388,1.79548856,64664.0,64663.0,0.002]
[1721311936602,1.79548727,64664.0,64663.0,0.002]
[1721311936820,1.72681066,64664.0,64663.0,0.002]
[1721311937051,0.77337,64652.0,64651.0,0.078]
[1721311937500,0.30934,64654.0,64648.0,0.0607]
[1721311937501,0.773395,64650.0,64648.0,0.0607]
[1721311938849,0.773395,64650.0,64649.0,0.0148864]
[1721311938850,0.154679,64650.0,64649.0,0.0148864]
[1721311939085,0.154675,64652.0,64649.0,0.02230394]
[1721311939302,0.154672,64653.0,64649.0,0.02230394]
[1721311939520,0.154672,64653.0,64651.0,0.008]
[1721311940002,0.309312,64660.0,64652.0,0.0894096]
[1721311940212,0.154671,64654.0,64652.0,0.0894096]
[1721311940711,0.003,64653.0,64652.0,0.0894096]
[1721311940943,0.467014,64653.0,64652.0,0.0894096]
[1721311941162,0.464014,64653.0,64652.0,0.0894096]
[1721311941616,0.154667,64655.0,64652.0,0.0894096]
[1721311943213,0.154667,64655.0,64652.0,0.0944096]
[1721311943424,0.154667,64655.0,64652.0,0.0954096]
[1721311943873,0.0458117,64661.0,64657.0,0.154661]
[1721311944134,0.154647,64663.0,64658.0,0.301758]
[1721311944353,0.309294,64664.0,64659.0,0.154656]
[1721311944354,0.154646,64664.0,64659.0,0.154656]
[1721311944575,0.00084,64666.0,64660.0,0.154654]
[1721311944830,0.00084,64666.0,64660.0,0.00738842]
[1721311945074,0.463957,64661.0,64660.0,0.00738842]
[1721311945287,0.773262,64661.0,64660.0,0.00738842]
[1721311945508,0.154655,64660.0,64658.0,0.1471]
[1721311945941,0.154657,64659.0,64658.0,0.1471]
[1721311946157,0.463972,64659.0,64658.0,0.1471]
[1721311946377,0.154655,64660.0,64658.0,0.1471]
[1721311946640,0.155653,64661.0,64658.0,0.18448776]
[1721311946874,0.317297,64663.0,64658.0,0.1481]
[1721311947095,0.158656,64660.0,64658.0,0.1481]
[1721311947809,0.154657,64659.0,64658.0,0.1481]
[1721311948038,0.154657,64659.0,64658.0,0.1471]
[1721311948495,0.773287,64659.0,64658.0,0.15449371]
[1721311949004,0.773287,64659.0,64658.0,0.1471]
[1721311949452,0.154671,64653.0,64652.0,0.0601]
[1721311949681,0.464037,64650.0,64649.0,0.000924]
[1721311949896,1.20853297,64650.0,64649.0,0.000924]
[1721311950128,1.23146916,64650.0,64649.0,0.000924]
[1721311950595,1.29417441,64650.0,64649.0,0.000924]
[1721311951024,1.29417441,64650.0,64642.0,0.01252]
[1721311951025,0.773477,64643.0,64642.0,0.01252]
[1721311951505,0.06873199,64648.0,64639.0,0.007772]
[1721311951506,0.464107,64640.0,64639.0,0.007772]
[1721311951780,0.773512,64640.0,64639.0,0.007772]
[1721311952217,0.464107,64640.0,64639.0,0.007772]
[1721311952494,0.773512,64640.0,64639.0,0.007772]
[1721311953795,0.154699,64642.0,64639.0,0.007772]
[1721311954045,0.1547,64641.0,64640.0,0.065]
[1721311954509,0.464101,64641.0,64640.0,0.065]
[1721311955175,0.464101,64641.0,64640.0,0.07243617]
[1721311955625,0.773502,64641.0,64640.0,0.00743617]
[1721311955841,0.773512,64640.0,64639.0,0.016772]
[1721311956780,0.773512,64640.0,64639.0,0.011772]
[1721311956997,1.082917,64640.0,64639.0,0.011772]
[1721311957471,1.082917,64640.0,64639.0,0.007772]
[1721311957710,0.773512,64640.0,64639.0,0.007772]
[1721311957939,0.1547,64642.0,64639.0,0.012772]
[1721311958161,0.154701,64641.0,64639.0,0.012772]
[1721311958599,0.309379,64646.0,64639.0,0.018772]
[1721311958600,0.001,64640.0,64639.0,0.018772]
[1721311959338,0.30939,64644.0,64639.0,0.012772]
[1721311959339,0.464085,64644.0,64639.0,0.012772]
[1721311959558,0.154701,64641.0,64639.0,0.012772]
[1721311961011,0.309396,64642.0,64639.0,0.012772]
[1721311961012,0.464107,64640.0,64639.0,0.012772]
[1721311961643,0.154702,64640.0,64639.0,0.012772]
[1721311961889,0.464107,64640.0,64639.0,0.014772]
[1721311962297,0.464107,64640.0,64639.0,0.012772]
[1721311962545,0.773512,64640.0,64639.0,0.012772]
[1721311962872,0.773512,64640.0,64639.0,0.017772]
[1721311963077,0.774512,64640.0,64639.0,0.02623355]
[1721311963707,0.774512,64640.0,64639.0,0.018772]
[1721311965852,0.774512,64640.0,64639.0,0.02625817]
[1721311966240,0.774512,64640.0,64639.0,0.018772]
[1721311966485,0.465107,64640.0,64639.0,0.018772]
[1721311966725,0.001,64640.0,64639.0,0.75348697]
[1721311967010,0.001,64640.0,64639.0,1.27820197]
[1721311967223,0.001,64640.0,64639.0,0.96879197]
[1721311967423,0.001,64640.0,64639.0,0.16395817]
[1721311969579,0.001,64640.0,64639.0,0.31866317]
[1721311969821,0.001,64640.0,64639.0,0.62807317]
[1721311972596,0.001,64640.0,64639.0,0.93748317]
[1721311972827,0.001,64640.0,64639.0,1.91245633]
[1721311974204,0.002794,64657.0,64654.0,0.0797]
[1721311974429,0.154667,64655.0,64654.0,0.0797]
[1721311974714,0.154667,64655.0,64650.0,0.0797]
[1721311974715,0.154671,64653.0,64650.0,0.0797]
[1721311975172,0.154675,64652.0,64650.0,0.0797]
[1721311975691,0.309358,64650.0,64646.0,0.0751]
[1721311975936,0.154686,64647.0,64646.0,0.0751]
[1721311976661,0.309372,64647.0,64641.0,0.0762]
[1721311976891,0.35516031,64654.0,64641.0,0.0762]
[1721311977131,0.154695,64644.0,64641.0,0.0762]
[1721311977371,0.154698,64642.0,64641.0,0.0762]
[1721311977846,0.154693,64644.0,64641.0,0.0762]
[1721311978040,0.309373,64647.0,64641.0,0.2309]
[1721311978295,0.154686,64647.0,64642.0,0.00309359]
[1721311978518,0.55813463,64657.0,64646.0,0.309374]
[1721311978519,0.04581731,64654.0,64646.0,0.309374]
[1721311978761,0.154673,64653.0,64647.0,0.309371]
[1721311978982,0.154673,64653.0,64648.0,0.154683]
[1721311979457,0.154673,64653.0,64649.0,0.00745331]
[1721311979692,0.309336,64655.0,64649.0,0.00745331]
[1721311979693,0.309342,64654.0,64649.0,0.00745331]
[1721311979928,0.154673,64653.0,64649.0,0.00745331]
[1721311980181,0.154673,64653.0,64650.0,0.1402]
[1721311980407,0.775825,64657.0,64650.0,0.1402]
[1721311980660,0.775825,64657.0,64651.0,0.00744802]
[1721311980661,0.154674,64652.0,64651.0,0.00744802]
[1721311980883,0.154674,64652.0,64650.0,0.0762]
[1721311980884,0.464022,64652.0,64650.0,0.0762]
[1721311981184,0.154676,64651.0,64650.0,0.0762]
[1721311981638,0.464029,64651.0,64650.0,0.08365067]
[1721311981883,0.773382,64651.0,64650.0,0.00745067]
[1721311982125,0.464107,64640.0,64639.0,0.507772]
[1721311982358,0.77346876,64640.0,64639.0,0.507772]
[1721311982645,0.77346876,64640.0,64639.0,0.51524471]
[1721311982889,0.77346876,64640.0,64639.0,0.507772]
[1721311983117,0.77346876,64640.0,64639.0,0.51524471]
[1721311983760,1.08287376,64640.0,64639.0,0.51524471]
[1721311984464,0.15465876,64640.0,64639.0,0.51524471]
[1721311984679,0.46406376,64640.0,64639.0,0.57495918]
[1721311985393,0.15565876,64640.0,64639.0,0.58095918]
[1721311985624,0.001,64640.0,64639.0,0.52124471]
[1721311985850,0.001,64640.0,64639.0,0.52524471]
[1721311987297,0.155702,64640.0,64639.0,0.52524471]
[1721311987565,0.001,64640.0,64639.0,0.52524471]
[1721311989203,0.15565876,64640.0,64639.0,0.52524471]
[1721311989447,0.15565876,64640.0,64639.0,0.58595918]
[1721311990427,0.46506376,64640.0,64639.0,0.58595918]
[1721311991198,0.15565876,64640.0,64639.0,0.52524471]
[1721311991668,0.77446876,64640.0,64639.0,0.52524471]
[1721311993041,0.46506376,64640.0,64639.0,0.52524471]
[1721311993288,0.46506376,64640.0,64639.0,1.28794145]
[1721311993289,0.00095676,64640.0,64639.0,1.28794145]
[1721311993517,0.04586002,64652.0,64650.0,0.08]
[1721311993755,0.154676,64651.0,64650.0,0.08]
[1721311993985,0.002794,64661.0,64651.0,0.00745348]
[1721311994232,0.06879393,64652.0,64645.0,0.1395]
[1721311994463,0.06879393,64652.0,64647.0,0.154685]
[1721311994464,0.00231385,64651.0,64647.0,0.154685]
[1721311994692,0.309346,64653.0,64647.0,0.154685]
[1721311994909,0.154681,64649.0,64646.0,0.01395]
[1721311995171,0.154681,64649.0,64647.0,0.0926915]
[1721311995403,0.09178229,64655.0,64639.0,0.66612157]
[1721311995404,0.154688,64646.0,64639.0,0.66612157]
[1721311995641,0.309405,64640.0,64639.0,0.66712157]
[1721311995911,0.464107,64640.0,64639.0,0.507772]
[1721311997322,0.464107,64640.0,64639.0,0.512772]
[1721311998952,0.464107,64640.0,64639.0,0.516772]
[1721311999181,1.144217,64640.0,64639.0,0.516772]
[1721311999408,1.20040954,64640.0,64639.0,0.516772]
[1721311999637,0.82970454,64640.0,64639.0,0.516772]
[1721311999863,0.88950578,64640.0,64639.0,0.516772]
[1721312000378,0.88950461,64640.0,64639.0,0.516772]
[1721312000639,0.48831469,64640.0,64639.0,0.516772]
[1721312000878,0.464107,64640.0,64639.0,0.516772]
[1721312001116,0.468107,64640.0,64639.0,0.511772]
[1721312001355,0.468107,64640.0,64639.0,0.51872609]
[1721312001593,0.004,64640.0,64639.0,0.64547489]
[1721312001841,0.004,64640.0,64639.0,0.72587489]
[1721312002058,0.004,64640.0,64639.0,0.72187489]
[1721312002311,0.004,64640.0,64639.0,1.49539989]
[1721312002534,0.154684,64648.0,64643.0,0.154693]
[1721312002770,0.154684,64648.0,64644.0,0.06627444]
[1721312003002,0.002794,64647.0,64644.0,0.07321504]
[1721312003260,0.06884958,64655.0,64652.0,0.154673]
[1721312003508,0.06884958,64655.0,64646.0,0.309374]
[1721312003735,0.11474354,64658.0,64654.0,0.235068]
[1721312003736,0.04590016,64656.0,64654.0,0.235068]
[1721312003967,0.04590016,64656.0,64649.0,0.0804]
[1721312003968,0.309338,64654.0,64649.0,0.0804]
[1721312004247,0.20057298,64652.0,64649.0,0.0804]
[1721312004477,0.20057298,64652.0,64650.0,0.0295285]
[1721312004478,0.154675,64652.0,64650.0,0.0295285]
[1721312004709,0.309338,64654.0,64649.0,0.0804]
[1721312004710,0.154677,64651.0,64649.0,0.0804]
[1721312004933,0.15466,64658.0,64653.0,0.154671]
[1721312005154,0.15466,64658.0,64654.0,0.2091118]
[1721312005155,0.002794,64658.0,64654.0,0.2091118]
[1721312005373,0.154655,64660.0,64655.0,0.154666]
[1721312006119,0.7758,64663.0,64654.0,0.0544428]
[1721312006120,0.07717479,64659.0,64654.0,0.0544428]
[1721312006338,0.07717479,64659.0,64653.0,0.154669]
[1721312006574,0.15466,64658.0,64653.0,0.154669]
[1721312006848,0.154664,64657.0,64651.0,0.154675]
[1721312007070,0.15467,64654.0,64649.0,0.23508]
[1721312007302,0.00083,64652.0,64650.0,0.0825447]
[1721312007755,0.00083,64652.0,64649.0,0.23508]
[1721312007982,0.00083,64652.0,64650.0,0.154679]
[1721312008244,0.00083,64652.0,64650.0,0.16160154]
[1721312008462,0.00083,64652.0,64651.0,0.773382]
[1721312008712,0.00083,64652.0,64651.0,0.77647511]
[1721312008930,0.00083,64652.0,64651.0,0.92571836]
[1721312009371,0.00083,64652.0,64651.0,1.07011836]
[1721312010069,0.00083,64652.0,64651.0,0.45141236]
[1721312010295,0.00083,64652.0,64651.0,0.76076536]
[1721312010517,0.00183,64652.0,64651.0,0.77176536]
[1721312011175,0.00183,64652.0,64651.0,0.78176536]
[1721312012549,0.00183,64652.0,64651.0,0.47241236]
[1721312012774,0.00183,64652.0,64651.0,0.78176536]
[1721312014925,0.00183,64652.0,64651.0,1.09111836]
[1721312015152,0.00183,64652.0,64651.0,0.78176536]
[1721312016278,0.00183,64652.0,64651.0,1.09111836]
[1721312017807,0.00183,64652.0,64651.0,1.6048531]
[1721312018285,0.00183,64652.0,64651.0,2.04264536]
[1721312018743,0.00183,64652.0,64651.0,2.04263933]
[1721312019180,0.00183,64652.0,64651.0,1.9142061]
[1721312019383,0.00183,64652.0,64651.0,1.9042061]
[1721312019674,0.00183,64652.0,64651.0,1.5548531]
[1721312019906,0.00083,64652.0,64651.0,1.5438531]
[1721312020133,0.00083,64652.0,64651.0,1.5548531]
[1721312020350,0.00083,64652.0,64651.0,1.5448531]
[1721312020579,0.00083,64652.0,64651.0,1.08111836]
[1721312020808,0.00083,64652.0,64651.0,1.09311836]
[1721312023942,0.00083,64652.0,64651.0,0.71936536]
[1721312024179,0.528252,64652.0,64651.0,0.02991989]
[1721312024402,0.99198174,64652.0,64651.0,0.02991989]
[1721312024631,1.32432974,64652.0,64651.0,0.023]
[1721312024863,1.37012918,64652.0,64651.0,0.023]
[1721312025094,1.32432974,64652.0,64651.0,0.023]
[1721312026053,1.32432974,64652.0,64651.0,0.012]
[1721312026284,1.37012822,64652.0,64651.0,0.012]
[1721312026500,0.154702,64640.0,64639.0,0.508685]
[1721312027683,0.464107,64640.0,64639.0,0.508685]
[1721312028358,0.154702,64640.0,64639.0,0.508685]
[1721312030068,0.773512,64640.0,64639.0,0.508685]
[1721312030296,0.839012,64640.0,64639.0,0.508685]
[1721312030522,0.464107,64640.0,64639.0,0.508685]
[1721312031442,0.465107,64640.0,64639.0,0.508685]
[1721312032128,0.156702,64640.0,64639.0,0.508685]
[1721312032421,0.157702,64640.0,64639.0,0.51472526]
[1721312032832,0.003,64640.0,64639.0,0.87417419]
[1721312033054,0.003,64640.0,64639.0,1.18358419]
[1721312033287,0.003,64640.0,64639.0,1.95678593]
[1721312033756,0.003,64640.0,64639.0,2.00678593]
[1721312034005,0.001,64640.0,64639.0,2.00678593]
[1721312034238,0.001,64640.0,64639.0,1.95678593]
[1721312034944,0.001,64640.0,64639.0,1.96378593]
[1721312035398,0.002794,64650.0,64646.0,0.154687]
[1721312035626,0.002794,64650.0,64647.0,0.0773459]
[1721312035847,0.621177,64651.0,64647.0,0.0773459]
[1721312036073,0.621177,64651.0,64647.0,0.2320309]
[1721312036333,0.00083,64652.0,64651.0,0.464029]
[1721312036562,0.00083,64652.0,64649.0,0.154681]
[1721312036786,0.00083,64652.0,64649.0,0.22285026]
[1721312037491,0.001,64650.0,64648.0,0.0803]
[1721312037711,0.154677,64651.0,64636.0,0.15471]
[1721312037712,0.1547,64641.0,64636.0,0.15471]
[1721312038153,0.1547,64641.0,64634.0,0.389731]
[1721312038154,0.1547,64641.0,64637.0,0.154709]
[1721312038384,0.1547,64641.0,64636.0,0.154712]
[1721312038603,0.1547,64641.0,64637.0,0.154709]
[1721312039142,0.1547,64641.0,64639.0,0.58166919]
[1721312039810,0.154702,64640.0,64639.0,0.58166919]
[1721312040347,0.309397,64642.0,64639.0,0.51472526]
[1721312040567,0.154702,64640.0,64639.0,0.52072526]
[1721312040778,0.309394,64643.0,64639.0,0.52072526]
[1721312041015,0.154701,64641.0,64640.0,0.06754343]
[1721312041223,0.154701,64641.0,64639.0,0.51472526]
[1721312041437,0.154702,64640.0,64639.0,0.52172526]
[1721312041655,0.464107,64640.0,64639.0,0.52172526]
[1721312041871,0.773512,64640.0,64639.0,0.52972526]
[1721312042090,1.082917,64640.0,64639.0,0.52972526]
[1721312042310,1.12871691,64640.0,64639.0,0.51472526]
[1721312042527,1.12871691,64640.0,64639.0,0.52172526]
[1721312042528,1.082917,64640.0,64639.0,0.52172526]
[1721312042778,0.773512,64640.0,64639.0,0.52172526]